[Event "*** SCC Grand Prix: Titled Tuesday Blitz"]
[Site "Chess.com"]
[Date "2020.08.25"]
[Round "3"]
[White "Ranindu2003"]
[Black "Kaua18"]
[Result "0-1"]
[WhiteElo "2599"]
[BlackElo "2411"]
[TimeControl "180+1"]
[EndTime "10:32:55 PDT"]
[Termination "Kaua18 won by resignation"]

1. e4 {[%clk 0:02:59]} 1... c5 {[%clk 0:03:00.3]} 2. Nf3 {[%clk 0:02:58.4]} 2...
Nc6 {[%clk 0:03:00.8]} 3. Bb5 {[%clk 0:02:57.9]} 3... g6 {[%clk 0:02:58.7]} 4.
Bxc6 {[%clk 0:02:56.8]} 4... dxc6 {[%clk 0:02:59.6]} 5. d3 {[%clk 0:02:57]} 5...
Bg7 {[%clk 0:02:59.7]} 6. h3 {[%clk 0:02:57.3]} 6... Nf6 {[%clk 0:02:58.2]} 7.
Nc3 {[%clk 0:02:57.8]} 7... O-O {[%clk 0:02:58.6]} 8. O-O {[%clk 0:02:58.4]}
8... Nd7 {[%clk 0:02:58.5]} 9. Be3 {[%clk 0:02:59]} 9... Re8 {[%clk 0:02:57.9]}
10. Qd2 {[%clk 0:02:59.3]} 10... e5 {[%clk 0:02:55.9]} 11. Nh2 {[%clk
0:02:54.7]} 11... Nf8 {[%clk 0:02:55.6]} 12. Bxc5 {[%clk 0:02:53.7]} 12... Ne6
{[%clk 0:02:52.5]} 13. Be3 {[%clk 0:02:51.8]} 13... f5 {[%clk 0:02:49.5]} 14.
exf5 {[%clk 0:02:42.9]} 14... gxf5 {[%clk 0:02:50.4]} 15. f4 {[%clk 0:02:42.4]}
15... exf4 {[%clk 0:02:48.8]} 16. Bxf4 {[%clk 0:02:43]} 16... Nxf4 {[%clk
0:02:46.4]} 17. Qxf4 {[%clk 0:02:43.9]} 17... Qd4+ {[%clk 0:02:21]} 18. Kh1
{[%clk 0:02:39.4]} 18... Qxf4 {[%clk 0:02:19.7]} 19. Rxf4 {[%clk 0:02:40.3]}
19... Bxc3 {[%clk 0:02:17.9]} 20. bxc3 {[%clk 0:02:41.2]} 20... Re2 {[%clk
0:02:18.2]} 21. Rc1 {[%clk 0:02:39.7]} 21... Bd7 {[%clk 0:02:18.3]} 22. Nf3
{[%clk 0:02:35.3]} 22... Rae8 {[%clk 0:02:17.3]} 23. Nd4 {[%clk 0:02:34.7]}
23... Re1+ {[%clk 0:02:17.3]} 24. Rxe1 {[%clk 0:02:34.1]} 24... Rxe1+ {[%clk
0:02:18.2]} 25. Kh2 {[%clk 0:02:34.5]} 25... Ra1 {[%clk 0:02:18.6]} 26. Nf3
{[%clk 0:02:11.6]} 26... Rxa2 {[%clk 0:02:11.6]} 27. Rd4 {[%clk 0:02:11.4]}
27... Be8 {[%clk 0:01:59.1]} 28. Rd8 {[%clk 0:02:09]} 28... Kf7 {[%clk
0:01:55.8]} 29. Nd4 {[%clk 0:02:03.2]} 29... b5 {[%clk 0:01:34.5]} 30. Kg3
{[%clk 0:01:28.6]} 30... c5 {[%clk 0:01:30.4]} 31. Nxf5 {[%clk 0:01:23.4]} 31...
Rxc2 {[%clk 0:01:30.2]} 32. Ra8 {[%clk 0:01:20.8]} 32... Bc6 {[%clk 0:01:26.4]}
33. Rxa7+ {[%clk 0:01:20.1]} 33... Kf6 {[%clk 0:01:25.5]} 34. Ne3 {[%clk
0:01:08.2]} 34... Re2 {[%clk 0:01:24.2]} 35. Kf4 {[%clk 0:00:58.3]} 35... Bxg2
{[%clk 0:01:20.9]} 36. Ra6+ {[%clk 0:00:58.4]} 36... Kf7 {[%clk 0:01:18.9]} 37.
h4 {[%clk 0:00:55.7]} 37... Bh3 {[%clk 0:01:13.8]} 38. Rd6 {[%clk 0:00:53.1]}
38... b4 {[%clk 0:01:05.2]} 39. cxb4 {[%clk 0:00:51.8]} 39... cxb4 {[%clk
0:01:06.1]} 40. Rb6 {[%clk 0:00:52.4]} 40... Rd2 {[%clk 0:00:43.2]} 41. Ke4
{[%clk 0:00:50.7]} 41... Rb2 {[%clk 0:00:31]} 42. Nc4 {[%clk 0:00:50.4]} 42...
Rb3 {[%clk 0:00:26.2]} 43. Ne5+ {[%clk 0:00:48.7]} 43... Kg7 {[%clk 0:00:21.3]}
44. h5 {[%clk 0:00:47]} 44... Bg2+ {[%clk 0:00:16.5]} 45. Kf5 {[%clk 0:00:39.7]}
45... Rb1 {[%clk 0:00:13.8]} 46. Ra6 {[%clk 0:00:33.7]} 46... Rf1+ {[%clk
0:00:09.5]} 47. Kg5 {[%clk 0:00:32.9]} 47... b3 {[%clk 0:00:10.4]} 48. Ra7+
{[%clk 0:00:29.7]} 48... Kg8 {[%clk 0:00:10.6]} 49. Rc7 {[%clk 0:00:19.9]} 49...
Bd5 {[%clk 0:00:10.3]} 50. Rc8+ {[%clk 0:00:19.6]} 50... Rf8 {[%clk 0:00:09.1]}
51. Rc5 {[%clk 0:00:17.4]} 51... Be6 {[%clk 0:00:09.2]} 52. Rb5 {[%clk
0:00:17.4]} 52... Rf5+ {[%clk 0:00:07.6]} 53. Kh4 {[%clk 0:00:17.6]} 53... b2
{[%clk 0:00:08]} 54. Rb8+ {[%clk 0:00:16.2]} 54... Kg7 {[%clk 0:00:08.2]} 55.
Nc6 {[%clk 0:00:13.8]} 55... Rf4+ {[%clk 0:00:04.7]} 56. Kg3 {[%clk 0:00:12.9]}
56... Rg4+ {[%clk 0:00:02.7]} 57. Kf3 {[%clk 0:00:13.2]} 57... Rg5 {[%clk
0:00:02.9]} 58. Nd8 {[%clk 0:00:11.6]} 58... Bd5+ {[%clk 0:00:01.9]} 59. Kf4
{[%clk 0:00:11.4]} 59... Rxh5 {[%clk 0:00:02.8]} 60. Rb5 {[%clk 0:00:11.6]}
60... b1=Q {[%clk 0:00:02.3]} 61. Rxb1 {[%clk 0:00:11.2]} 61... Rh4+ {[%clk
0:00:03.2]} 62. Kg5 {[%clk 0:00:10.5]} 62... Rh2 {[%clk 0:00:03.7]} 63. Rb5
{[%clk 0:00:10.2]} 63... Rg2+ {[%clk 0:00:03.4]} 64. Kf4 {[%clk 0:00:10.4]}
64... Bg8 {[%clk 0:00:03.8]} 65. Rb7+ {[%clk 0:00:10.4]} 65... Kh8 {[%clk
0:00:03.6]} 66. Nc6 {[%clk 0:00:10.9]} 66... h5 {[%clk 0:00:04]} 67. Ne7 {[%clk
0:00:10.3]} 67... h4 {[%clk 0:00:04.4]} 68. Rb5 {[%clk 0:00:10.4]} 68... Bf7
{[%clk 0:00:03.7]} 69. Nf5 {[%clk 0:00:09.4]} 69... h3 {[%clk 0:00:03.6]} 70.
Ng3 {[%clk 0:00:09.4]} 70... h2 {[%clk 0:00:03.4]} 71. Rb1 {[%clk 0:00:09.4]}
71... Bd5 {[%clk 0:00:03.1]} 72. Nf5 {[%clk 0:00:03.4]} 72... Rg1 {[%clk
0:00:03.1]} 73. Rb8+ {[%clk 0:00:03.4]} 73... Bg8 {[%clk 0:00:03.1]} 74. Rd8
{[%clk 0:00:04.2]} 74... h1=Q {[%clk 0:00:03.4]} 75. Ke5 {[%clk 0:00:05.1]}
75... Qh2+ {[%clk 0:00:03.4]} 76. Kf6 {[%clk 0:00:04.7]} 76... Rf1 {[%clk
0:00:04.3]} 77. Kg6 {[%clk 0:00:04.2]} 77... Rxf5 {[%clk 0:00:04.9]} 78. Kxf5
{[%clk 0:00:03.7]} 78... Qf2+ {[%clk 0:00:05.8]} 79. Ke5 {[%clk 0:00:04.1]}
79... Qe3+ {[%clk 0:00:06.2]} 80. Kf6 {[%clk 0:00:03.8]} 80... Qf4+ {[%clk
0:00:06.6]} 81. Ke7 {[%clk 0:00:03.7]} 81... Qe5+ {[%clk 0:00:07.1]} 82. Kd7
{[%clk 0:00:04.1]} 82... Qb5+ {[%clk 0:00:07.3]} 83. Kc8 {[%clk 0:00:05]} 83...
Qc6+ {[%clk 0:00:07.1]} 84. Kb8 {[%clk 0:00:05.2]} 84... Kg7 {[%clk 0:00:07.6]}
85. Rc8 {[%clk 0:00:05.2]} 85... Qb6+ {[%clk 0:00:07.7]} 86. Ka8 {[%clk
0:00:05.2]} 86... Bd5+ {[%clk 0:00:08.3]} 0-1

[Event "*** SCC Grand Prix: Titled Tuesday Blitz"]
[Site "Chess.com"]
[Date "2020.08.25"]
[Round "3"]
[White "korkmaz16"]
[Black "Noam_Vitenberg"]
[Result "1/2-1/2"]
[WhiteElo "2303"]
[BlackElo "2503"]
[TimeControl "180+1"]
[EndTime "10:32:58 PDT"]
[Termination "Game drawn by repetition"]

1. e4 {[%clk 0:03:00.9]} 1... e5 {[%clk 0:02:59.6]} 2. Nf3 {[%clk 0:02:59.9]}
2... Nc6 {[%clk 0:03:00.2]} 3. d4 {[%clk 0:02:53.4]} 3... exd4 {[%clk
0:03:00.2]} 4. Nxd4 {[%clk 0:02:52.5]} 4... Nf6 {[%clk 0:03:00.6]} 5. Nxc6
{[%clk 0:02:50.5]} 5... bxc6 {[%clk 0:03:01.5]} 6. e5 {[%clk 0:02:50.6]} 6...
Qe7 {[%clk 0:03:01.1]} 7. Qe2 {[%clk 0:02:50.8]} 7... Nd5 {[%clk 0:03:01.4]} 8.
c4 {[%clk 0:02:50.6]} 8... Nb6 {[%clk 0:03:01.9]} 9. Nc3 {[%clk 0:02:45.9]} 9...
Bb7 {[%clk 0:03:01.9]} 10. Qe4 {[%clk 0:02:33.7]} 10... O-O-O {[%clk 0:03:01.1]}
11. Bd3 {[%clk 0:02:32.1]} 11... c5 {[%clk 0:03:01]} 12. Qe2 {[%clk 0:02:27.4]}
12... Re8 {[%clk 0:03:00.9]} 13. f4 {[%clk 0:02:25.2]} 13... f6 {[%clk
0:03:00.3]} 14. O-O {[%clk 0:02:18.3]} 14... fxe5 {[%clk 0:02:59.6]} 15. fxe5
{[%clk 0:01:59.8]} 15... Qxe5 {[%clk 0:02:58.8]} 16. Qxe5 {[%clk 0:01:58.7]}
16... Rxe5 {[%clk 0:02:58]} 17. Bf4 {[%clk 0:01:57.9]} 17... Re8 {[%clk
0:02:55.3]} 18. Nb5 {[%clk 0:01:56.7]} 18... d6 {[%clk 0:02:50.8]} 19. Nxa7+
{[%clk 0:01:56]} 19... Kb8 {[%clk 0:02:51.2]} 20. Nb5 {[%clk 0:01:56.1]} 20...
Be7 {[%clk 0:02:51.7]} 21. Rae1 {[%clk 0:01:52.1]} 21... Bf6 {[%clk 0:02:50.9]}
22. b3 {[%clk 0:01:45.6]} 22... Nd7 {[%clk 0:02:40.9]} 23. a4 {[%clk 0:01:41.4]}
23... Ne5 {[%clk 0:02:40.1]} 24. Be4 {[%clk 0:01:38.9]} 24... Bxe4 {[%clk
0:02:24.3]} 25. Rxe4 {[%clk 0:01:38.3]} 25... Nd3 {[%clk 0:02:24.8]} 26. Re3
{[%clk 0:01:23.4]} 26... Rxe3 {[%clk 0:02:08.9]} 27. Bxe3 {[%clk 0:01:22.8]}
27... Re8 {[%clk 0:02:09.5]} 28. Rf3 {[%clk 0:01:18.7]} 28... Ne1 {[%clk
0:02:09.4]} 29. Rh3 {[%clk 0:01:18.3]} 29... Nc2 {[%clk 0:02:09]} 30. Bf2 {[%clk
0:01:14.2]} 30... h6 {[%clk 0:02:08.2]} 31. Rd3 {[%clk 0:01:05.7]} 31... Nb4
{[%clk 0:01:57.3]} 32. Re3 {[%clk 0:01:04.4]} 32... Rf8 {[%clk 0:01:51.7]} 33.
Rf3 {[%clk 0:00:50.4]} 33... Re8 {[%clk 0:01:49.7]} 34. Nc3 {[%clk 0:00:46.8]}
34... Nc2 {[%clk 0:01:42.4]} 35. Nd5 {[%clk 0:00:42.4]} 35... Bd4 {[%clk
0:01:42.4]} 36. g3 {[%clk 0:00:39.8]} 36... Re1+ {[%clk 0:01:36.3]} 37. Kg2
{[%clk 0:00:39.6]} 37... Re2 {[%clk 0:01:35.9]} 38. Kf1 {[%clk 0:00:37.3]} 38...
Rd2 {[%clk 0:01:36.1]} 39. Bxd4 {[%clk 0:00:32.9]} 39... Nxd4 {[%clk 0:01:37]}
40. Rf8+ {[%clk 0:00:32.4]} 40... Kb7 {[%clk 0:01:34.7]} 41. Rf7 {[%clk
0:00:33.3]} 41... Nxb3 {[%clk 0:01:30.5]} 42. Rxc7+ {[%clk 0:00:32.6]} 42... Kb8
{[%clk 0:01:30.7]} 43. Rxg7 {[%clk 0:00:28.6]} 43... Rxh2 {[%clk 0:01:30.6]} 44.
Rg6 {[%clk 0:00:26.8]} 44... Nd2+ {[%clk 0:01:19.6]} 45. Kg1 {[%clk 0:00:26.4]}
45... Nf3+ {[%clk 0:01:11.3]} 46. Kf1 {[%clk 0:00:26.2]} 46... Nd2+ {[%clk
0:01:11.9]} 47. Kg1 {[%clk 0:00:26.1]} 47... Nf3+ {[%clk 0:00:59.5]} 48. Kf1
{[%clk 0:00:25.9]} 48... Ra2 {[%clk 0:00:59.7]} 49. Rxd6 {[%clk 0:00:24.4]}
49... Nd2+ {[%clk 0:00:59.7]} 50. Kg1 {[%clk 0:00:22.6]} 50... Nxc4 {[%clk
0:01:00.6]} 51. Rxh6 {[%clk 0:00:22.3]} 51... Rd2 {[%clk 0:00:58.4]} 52. Nb6
{[%clk 0:00:22.1]} 52... Ne3 {[%clk 0:00:56.1]} 53. Nd7+ {[%clk 0:00:22.4]}
53... Kc7 {[%clk 0:00:52.5]} 54. Nxc5 {[%clk 0:00:23.3]} 54... Rg2+ {[%clk
0:00:51.8]} 55. Kh1 {[%clk 0:00:23.2]} 55... Rxg3 {[%clk 0:00:52.2]} 56. Ne6+
{[%clk 0:00:20.1]} 56... Kb7 {[%clk 0:00:51.1]} 57. Nc5+ {[%clk 0:00:20.2]}
57... Ka7 {[%clk 0:00:51]} 58. Ne4 {[%clk 0:00:20.8]} 58... Rg4 {[%clk
0:00:49.2]} 59. Nf2 {[%clk 0:00:20.1]} 59... Rxa4 {[%clk 0:00:45]} 60. Re6
{[%clk 0:00:19.5]} 60... Nf5 {[%clk 0:00:41.4]} 61. Nd3 {[%clk 0:00:18.2]} 61...
Rd4 {[%clk 0:00:40.5]} 62. Nc5 {[%clk 0:00:17.6]} 62... Rd5 {[%clk 0:00:39.4]}
63. Ne4 {[%clk 0:00:16.7]} 63... Rd4 {[%clk 0:00:34]} 64. Kg2 {[%clk 0:00:15.6]}
64... Ne3+ {[%clk 0:00:32.7]} 65. Kf3 {[%clk 0:00:15.6]} 65... Nd5 {[%clk
0:00:33.6]} 66. Rd6 {[%clk 0:00:14.4]} 66... Rd3+ {[%clk 0:00:32.6]} 67. Ke2
{[%clk 0:00:14.5]} 67... Nf4+ {[%clk 0:00:28.7]} 68. Kf2 {[%clk 0:00:14.6]}
68... Rh3 {[%clk 0:00:24.1]} 69. Rf6 {[%clk 0:00:13.1]} 69... Nd5 {[%clk
0:00:23.3]} 70. Rf5 {[%clk 0:00:11]} 70... Ne3 {[%clk 0:00:20.7]} 71. Rf3 {[%clk
0:00:10.4]} 71... Ng4+ {[%clk 0:00:20.6]} 72. Kg2 {[%clk 0:00:10.3]} 72... Rh8
{[%clk 0:00:19.8]} 73. Kg3 {[%clk 0:00:10.8]} 73... Ne5 {[%clk 0:00:19.6]} 74.
Rf5 {[%clk 0:00:10.4]} 74... Nc6 {[%clk 0:00:19.8]} 75. Rf7+ {[%clk 0:00:10]}
75... Kb6 {[%clk 0:00:20]} 76. Rf6 {[%clk 0:00:10.9]} 76... Kc7 {[%clk
0:00:19.6]} 77. Ng5 {[%clk 0:00:11.2]} 77... Rg8 {[%clk 0:00:19.1]} 78. Kf4
{[%clk 0:00:10.6]} 78... Re8 {[%clk 0:00:16.1]} 79. Ne6+ {[%clk 0:00:10.4]}
79... Kb7 {[%clk 0:00:15]} 80. Nc5+ {[%clk 0:00:10.5]} 80... Kb6 {[%clk
0:00:15.2]} 81. Nd7+ {[%clk 0:00:10.9]} 81... Kc7 {[%clk 0:00:15.5]} 82. Nf8
{[%clk 0:00:10.8]} 82... Re1 {[%clk 0:00:14.5]} 83. Ne6+ {[%clk 0:00:10.6]}
83... Kc8 {[%clk 0:00:10.2]} 84. Nc5 {[%clk 0:00:10.6]} 84... Ne7 {[%clk
0:00:07.1]} 85. Ra6 {[%clk 0:00:09.6]} 85... Kc7 {[%clk 0:00:06.6]} 86. Ne6+
{[%clk 0:00:09.1]} 86... Kd7 {[%clk 0:00:05.7]} 87. Nc5+ {[%clk 0:00:08.4]}
87... Ke8 {[%clk 0:00:05.9]} 88. Ne4 {[%clk 0:00:08.4]} 88... Nd5+ {[%clk
0:00:04.9]} 89. Ke5 {[%clk 0:00:08.2]} 89... Nc7 {[%clk 0:00:05.2]} 90. Rc6
{[%clk 0:00:07.9]} 90... Kd7 {[%clk 0:00:05.4]} 91. Rd6+ {[%clk 0:00:08.2]}
91... Ke7 {[%clk 0:00:05.2]} 92. Rc6 {[%clk 0:00:08.2]} 92... Kd7 {[%clk
0:00:05.5]} 93. Rd6+ {[%clk 0:00:08.3]} 93... Kc8 {[%clk 0:00:06]} 94. Rc6
{[%clk 0:00:08.2]} 94... Kb7 {[%clk 0:00:06.3]} 95. Rc2 {[%clk 0:00:07.9]} 95...
Na6 {[%clk 0:00:06.2]} 96. Rb2+ {[%clk 0:00:05.6]} 96... Ka7 {[%clk 0:00:06.3]}
97. Kd5 {[%clk 0:00:04.8]} 97... Rd1+ {[%clk 0:00:06.1]} 98. Kc6 {[%clk
0:00:04.3]} 98... Rc1+ {[%clk 0:00:06.3]} 99. Kd5 {[%clk 0:00:03.9]} 99... Rd1+
{[%clk 0:00:06.2]} 100. Ke5 {[%clk 0:00:04.4]} 100... Re1 {[%clk 0:00:06.1]}
101. Kf4 {[%clk 0:00:04.8]} 101... Rf1+ {[%clk 0:00:05.4]} 102. Ke5 {[%clk
0:00:05.6]} 102... Re1 {[%clk 0:00:05.9]} 1/2-1/2

[Event "*** SCC Grand Prix: Titled Tuesday Blitz"]
[Site "Chess.com"]
[Date "2020.08.25"]
[Round "3"]
[White "jefferyx"]
[Black "Alexsur1981"]
[Result "1/2-1/2"]
[WhiteElo "2904"]
[BlackElo "2655"]
[TimeControl "180+1"]
[EndTime "10:33:15 PDT"]
[Termination "Game drawn - insufficient material"]

1. d4 {[%clk 0:02:35.3]} 1... d6 {[%clk 0:02:58.4]} 2. Nf3 {[%clk 0:02:31.2]}
2... Bg4 {[%clk 0:02:57.6]} 3. Nbd2 {[%clk 0:02:23.9]} 3... Nd7 {[%clk
0:02:54.2]} 4. h3 {[%clk 0:02:24.3]} 4... Bh5 {[%clk 0:02:53.8]} 5. g4 {[%clk
0:02:25]} 5... Bg6 {[%clk 0:02:53.4]} 6. Nh4 {[%clk 0:02:25.7]} 6... e5 {[%clk
0:02:51]} 7. Nxg6 {[%clk 0:02:26.1]} 7... hxg6 {[%clk 0:02:50]} 8. c3 {[%clk
0:02:26.6]} 8... c6 {[%clk 0:02:49.6]} 9. Bg2 {[%clk 0:02:26.7]} 9... Be7 {[%clk
0:02:48.4]} 10. Nc4 {[%clk 0:02:23.7]} 10... Qc7 {[%clk 0:02:45]} 11. e4 {[%clk
0:02:10.4]} 11... Ngf6 {[%clk 0:02:39.7]} 12. Be3 {[%clk 0:02:09.8]} 12... b5
{[%clk 0:02:31.6]} 13. Nd2 {[%clk 0:02:09.4]} 13... d5 {[%clk 0:02:26]} 14. g5
{[%clk 0:01:45.3]} 14... Nxe4 {[%clk 0:02:24.2]} 15. Nxe4 {[%clk 0:01:46]} 15...
dxe4 {[%clk 0:02:24.4]} 16. Bxe4 {[%clk 0:01:46.3]} 16... O-O {[%clk 0:02:22.5]}
17. d5 {[%clk 0:01:40.2]} 17... cxd5 {[%clk 0:02:17.3]} 18. Qxd5 {[%clk
0:01:41.1]} 18... Nc5 {[%clk 0:01:54.4]} 19. Qc6 {[%clk 0:01:08.9]} 19... Rac8
{[%clk 0:01:40]} 20. Bxc5 {[%clk 0:00:59.9]} 20... Bxc5 {[%clk 0:01:33.9]} 21.
Qxc7 {[%clk 0:00:48.9]} 21... Rxc7 {[%clk 0:01:34.8]} 22. Rd1 {[%clk 0:00:47.9]}
22... b4 {[%clk 0:01:28]} 23. c4 {[%clk 0:00:48.3]} 23... Bd4 {[%clk 0:01:21.7]}
24. b3 {[%clk 0:00:48.7]} 24... f5 {[%clk 0:00:58.6]} 25. gxf6 {[%clk
0:00:46.5]} 25... Rxf6 {[%clk 0:00:55.6]} 26. f3 {[%clk 0:00:45.9]} 26... Kh7
{[%clk 0:00:51.8]} 27. Ke2 {[%clk 0:00:44.3]} 27... Kh6 {[%clk 0:00:51.2]} 28.
Rh2 {[%clk 0:00:38.2]} 28... Ra6 {[%clk 0:00:45.3]} 29. Kd3 {[%clk 0:00:37.6]}
29... Rd7 {[%clk 0:00:42]} 30. Bd5 {[%clk 0:00:37.8]} 30... Rf6 {[%clk
0:00:40.5]} 31. Rg2 {[%clk 0:00:29.9]} 31... Rdd6 {[%clk 0:00:32.9]} 32. Rg4
{[%clk 0:00:29.7]} 32... Rf5 {[%clk 0:00:26.1]} 33. Rd2 {[%clk 0:00:26.7]} 33...
Bc3 {[%clk 0:00:21.4]} 34. Rf2 {[%clk 0:00:25]} 34... g5 {[%clk 0:00:20.3]} 35.
Ke2 {[%clk 0:00:22.5]} 35... Rf4 {[%clk 0:00:17.4]} 36. Rfg2 {[%clk 0:00:22.6]}
36... Rxg4 {[%clk 0:00:17.2]} 37. hxg4 {[%clk 0:00:23.5]} 37... Kg6 {[%clk
0:00:16.7]} 38. Rh2 {[%clk 0:00:24.4]} 38... Rd8 {[%clk 0:00:16.2]} 39. Kd3
{[%clk 0:00:21]} 39... Kf6 {[%clk 0:00:16.4]} 40. a3 {[%clk 0:00:20.4]} 40... a5
{[%clk 0:00:14.2]} 41. axb4 {[%clk 0:00:20.5]} 41... Bxb4 {[%clk 0:00:15.1]} 42.
Rc2 {[%clk 0:00:17.6]} 42... Bc5 {[%clk 0:00:14.8]} 43. Ra2 {[%clk 0:00:17.6]}
43... Bb4 {[%clk 0:00:14.6]} 44. Rh2 {[%clk 0:00:17.7]} 44... Bc5 {[%clk
0:00:14.4]} 45. Ke4 {[%clk 0:00:18]} 45... Bb4 {[%clk 0:00:14.5]} 46. Ra2 {[%clk
0:00:12.6]} 46... Rd7 {[%clk 0:00:13.3]} 47. c5 {[%clk 0:00:12.2]} 47... Bxc5
{[%clk 0:00:12.5]} 48. Rxa5 {[%clk 0:00:12]} 48... Bd4 {[%clk 0:00:08.6]} 49.
Ra6+ {[%clk 0:00:12.4]} 49... Ke7 {[%clk 0:00:09]} 50. Rg6 {[%clk 0:00:12.5]}
50... Kd8 {[%clk 0:00:08.5]} 51. Rxg5 {[%clk 0:00:12.9]} 51... Rc7 {[%clk
0:00:08.1]} 52. Rg6 {[%clk 0:00:13]} 52... Ke8 {[%clk 0:00:08.2]} 53. g5 {[%clk
0:00:13.3]} 53... Kf8 {[%clk 0:00:08.3]} 54. Bc4 {[%clk 0:00:13.6]} 54... Rb7
{[%clk 0:00:08]} 55. Rc6 {[%clk 0:00:12.5]} 55... Ra7 {[%clk 0:00:07.9]} 56.
Rc8+ {[%clk 0:00:12.6]} 56... Ke7 {[%clk 0:00:07.8]} 57. Kf5 {[%clk 0:00:13.5]}
57... Kd6 {[%clk 0:00:08.1]} 58. Rg8 {[%clk 0:00:13]} 58... Kc5 {[%clk
0:00:08.1]} 59. Ke4 {[%clk 0:00:11.4]} 59... Kb4 {[%clk 0:00:07.9]} 60. g6
{[%clk 0:00:11.6]} 60... Kc3 {[%clk 0:00:07.2]} 61. Bf7 {[%clk 0:00:11.9]} 61...
Ra1 {[%clk 0:00:07.4]} 62. Rxg7 {[%clk 0:00:12.4]} 62... Re1+ {[%clk 0:00:08.3]}
63. Kf5 {[%clk 0:00:12.8]} 63... e4 {[%clk 0:00:09]} 64. Rh7 {[%clk 0:00:09.1]}
64... exf3 {[%clk 0:00:09.3]} 65. Rh3 {[%clk 0:00:09.6]} 65... Re3 {[%clk
0:00:09.5]} 66. Bc4 {[%clk 0:00:04.8]} 66... Kd2 {[%clk 0:00:09.1]} 67. Kg4
{[%clk 0:00:04.4]} 67... Re1 {[%clk 0:00:07.1]} 68. Rxf3 {[%clk 0:00:03.8]}
68... Rg1+ {[%clk 0:00:07.6]} 69. Kf5 {[%clk 0:00:04.4]} 69... Bc3 {[%clk
0:00:07.8]} 70. Rf4 {[%clk 0:00:04.9]} 70... Rg2 {[%clk 0:00:05.9]} 71. Rf3
{[%clk 0:00:05.5]} 71... Rg1 {[%clk 0:00:05.9]} 72. Rd3+ {[%clk 0:00:06.4]}
72... Kc2 {[%clk 0:00:06.4]} 73. Rf3 {[%clk 0:00:05.9]} 73... Rg2 {[%clk
0:00:05.8]} 74. Rf4 {[%clk 0:00:04.6]} 74... Kb2 {[%clk 0:00:05.7]} 75. Rg4
{[%clk 0:00:05.2]} 75... Rf2+ {[%clk 0:00:06.2]} 76. Ke6 {[%clk 0:00:05.7]}
76... Bg7 {[%clk 0:00:06.7]} 77. Ke7 {[%clk 0:00:05.8]} 77... Kc3 {[%clk
0:00:06.6]} 78. Ke8 {[%clk 0:00:06.1]} 78... Rf8+ {[%clk 0:00:06.3]} 79. Ke7
{[%clk 0:00:06.1]} 79... Rf2 {[%clk 0:00:07.2]} 80. Be6 {[%clk 0:00:06.6]} 80...
Bf8+ {[%clk 0:00:05.4]} 81. Ke8 {[%clk 0:00:06.6]} 81... Bg7 {[%clk 0:00:06.3]}
82. Rc4+ {[%clk 0:00:06.9]} 82... Kd3 {[%clk 0:00:05.2]} 83. Bf7 {[%clk
0:00:07.3]} 83... Rf6 {[%clk 0:00:04.7]} 84. b4 {[%clk 0:00:05.9]} 84... Rxg6
{[%clk 0:00:04.3]} 85. Rc7 {[%clk 0:00:03.1]} 85... Rb6 {[%clk 0:00:04]} 86. b5
{[%clk 0:00:01.8]} 86... Bd4 {[%clk 0:00:03.5]} 87. Bc4+ {[%clk 0:00:02.7]}
87... Ke4 {[%clk 0:00:03.2]} 88. Kd7 {[%clk 0:00:03.6]} 88... Be5 {[%clk
0:00:03.3]} 89. Rc8 {[%clk 0:00:03.4]} 89... Kd4 {[%clk 0:00:03.3]} 90. Kd8
{[%clk 0:00:02.8]} 90... Rd6+ {[%clk 0:00:03.4]} 91. Ke8 {[%clk 0:00:03.5]}
91... Rb6 {[%clk 0:00:03.9]} 92. Kd7 {[%clk 0:00:04.4]} 92... Rd6+ {[%clk
0:00:03.8]} 93. Ke7 {[%clk 0:00:05.3]} 93... Rb6 {[%clk 0:00:04.6]} 94. Be2
{[%clk 0:00:04.8]} 94... Rb7+ {[%clk 0:00:04.7]} 95. Ke6 {[%clk 0:00:04.5]}
95... Rb6+ {[%clk 0:00:05.1]} 96. Kd7 {[%clk 0:00:05.2]} 96... Rd6+ {[%clk
0:00:03.9]} 97. Ke7 {[%clk 0:00:05.8]} 97... Rb6 {[%clk 0:00:04.5]} 98. Bf1
{[%clk 0:00:05.9]} 98... Rb7+ {[%clk 0:00:04.3]} 99. Ke6 {[%clk 0:00:06.5]}
99... Rb6+ {[%clk 0:00:05.2]} 100. Kd7 {[%clk 0:00:07.1]} 100... Rd6+ {[%clk
0:00:05.7]} 101. Ke7 {[%clk 0:00:07.8]} 101... Rb6 {[%clk 0:00:06.6]} 102. Rc4+
{[%clk 0:00:08.4]} 102... Kd5 {[%clk 0:00:06.2]} 103. Rc2 {[%clk 0:00:08.7]}
103... Rb7+ {[%clk 0:00:06.4]} 104. Ke8 {[%clk 0:00:08.8]} 104... Ke6 {[%clk
0:00:06.1]} 105. Rc6+ {[%clk 0:00:08.9]} 105... Kf5 {[%clk 0:00:05.9]} 106. Bc4
{[%clk 0:00:09.8]} 106... Bd4 {[%clk 0:00:05.8]} 107. Be6+ {[%clk 0:00:08.9]}
107... Ke5 {[%clk 0:00:06]} 108. Bd7 {[%clk 0:00:08.6]} 108... Rxb5 {[%clk
0:00:04.9]} 109. Re6+ {[%clk 0:00:05.9]} 109... Kd5 {[%clk 0:00:05.3]} 110. Bxb5
{[%clk 0:00:06.5]} 110... Kxe6 {[%clk 0:00:05.3]} 1/2-1/2

[Event "*** SCC Grand Prix: Titled Tuesday Blitz"]
[Site "Chess.com"]
[Date "2020.08.25"]
[Round "4"]
[White "Alembong"]
[Black "Volodar_Murzin"]
[Result "0-1"]
[WhiteElo "2458"]
[BlackElo "2666"]
[TimeControl "180+1"]
[EndTime "10:34:24 PDT"]
[Termination "Volodar_Murzin won by resignation"]

1. d4 {[%clk 0:03:00.9]} 1... Nf6 {[%clk 0:02:59.6]} 2. Nf3 {[%clk 0:03:00.6]}
2... g6 {[%clk 0:03:00.1]} 3. g3 {[%clk 0:03:00.7]} 3... Bg7 {[%clk 0:03:00.3]}
4. Bg2 {[%clk 0:03:01.3]} 4... O-O {[%clk 0:03:00.6]} 5. O-O {[%clk 0:03:01.8]}
5... d6 {[%clk 0:02:59.8]} 6. b3 {[%clk 0:03:01.7]} 6... Nc6 {[%clk 0:02:56.9]}
7. Bb2 {[%clk 0:03:01.1]} 7... e5 {[%clk 0:02:55.7]} 8. dxe5 {[%clk 0:03:00.7]}
8... Ng4 {[%clk 0:02:55.1]} 9. c4 {[%clk 0:03:00.9]} 9... dxe5 {[%clk
0:02:52.7]} 10. Nc3 {[%clk 0:02:53.7]} 10... e4 {[%clk 0:02:48.6]} 11. Ng5
{[%clk 0:02:53.4]} 11... Qxg5 {[%clk 0:02:46.2]} 0-1

[Event "*** SCC Grand Prix: Titled Tuesday Blitz"]
[Site "Chess.com"]
[Date "2020.08.25"]
[Round "4"]
[White "ChessSwole"]
[Black "rugbyclub"]
[Result "1-0"]
[WhiteElo "2439"]
[BlackElo "2168"]
[TimeControl "180+1"]
[EndTime "10:35:43 PDT"]
[Termination "ChessSwole won by resignation"]

1. d4 {[%clk 0:03:00.9]} 1... Nf6 {[%clk 0:02:57.7]} 2. Bf4 {[%clk 0:03:00.8]}
2... d5 {[%clk 0:02:54.1]} 3. e3 {[%clk 0:02:59.9]} 3... e6 {[%clk 0:02:50.9]}
4. Nd2 {[%clk 0:02:59.5]} 4... Bd6 {[%clk 0:02:51.4]} 5. Bg3 {[%clk 0:02:59.5]}
5... O-O {[%clk 0:02:49.9]} 6. Ngf3 {[%clk 0:02:59.6]} 6... b6 {[%clk
0:02:49.2]} 7. c4 {[%clk 0:02:58.2]} 7... c5 {[%clk 0:02:42.7]} 8. dxc5 {[%clk
0:02:55.4]} 8... bxc5 {[%clk 0:02:40.2]} 9. Bd3 {[%clk 0:02:49.3]} 9... Nc6
{[%clk 0:02:39.5]} 10. O-O {[%clk 0:02:47.7]} 10... Rb8 {[%clk 0:02:38.1]} 11.
b3 {[%clk 0:02:46.7]} 11... d4 {[%clk 0:02:34.2]} 12. Bxd6 {[%clk 0:02:40.5]}
12... Qxd6 {[%clk 0:02:33.4]} 13. Ne4 {[%clk 0:02:36.9]} 13... Nxe4 {[%clk
0:02:32.7]} 14. Bxe4 {[%clk 0:02:37.8]} 14... e5 {[%clk 0:02:28.3]} 15. Bxc6
{[%clk 0:02:34.5]} 15... Qxc6 {[%clk 0:02:28.3]} 16. Nxe5 {[%clk 0:02:34.7]}
16... Qe4 {[%clk 0:02:27.1]} 17. exd4 {[%clk 0:02:34.4]} 17... cxd4 {[%clk
0:02:26]} 18. Re1 {[%clk 0:02:34.7]} 18... Qf5 {[%clk 0:02:23]} 19. Nc6 {[%clk
0:02:31.7]} 19... Rb6 {[%clk 0:02:12.5]} 20. Ne7+ {[%clk 0:02:26.7]} 1-0